[Event "CZE-ch Youth G10-G12-G14 2022"]
[Site "Luhacovice"]
[Date "2022.03.13"]
[Round "2.25"]
[White "Kubatova Beta"]
[Black "Nova Anezka"]
[Result "1-0"]
[ECO "C45"]
[WhiteElo "1071"]
[BlackElo "1111"]
[Annotator "NA"]
[PlyCount "59"]
[EventDate "2022.03.12"]
[EventType "swiss"]
[EventCountry "CZE"]
[SourceTitle "playchess.com"]
[Source "ChessBase"]
[SourceQuality "1"]
[TimeControl "40/5400+30:1800+30"]

1. e4 {[%emt 0:00:06]} e5 {[%emt 0:00:06]} 2. Nf3 {[%emt 0:00:10]} Nc6 {[%emt 0:00:19]} 3. d4 {[%emt 0:00:23]} exd4 {[%emt 0:00:08]} 4. Nxd4 {[%emt 0:00:06]} Qh4 {[%emt 0:00:12]} 5. Nf3 {[%emt 0:10:16]} Qxe4+ {[%emt 0:00:16]} 6. Be3 {[%emt 0:00:59]} d5 {[%emt 0:02:57]} 7. Bd3 {[%emt 0:01:15]} Qb4+ {[%emt 0:01:50]} 8. Nbd2 {[%emt 0:06:26]} Qxb2 {[%emt 0:03:00]} 9. O-O {[%emt 0:08:05]} b6 {[%emt 0:16:01]} 10. Re1 {[%emt 0:00:46]} Be7 {[%emt 0:02:13]} 11. Nb3 {[%emt 0:02:07]} Qa3 {[%emt 0:04:21]} 12. Nfd4 {[%emt 0:02:12]} Qd6 {[%emt 0:04:12]} 13. Bb5 {[%emt 0:00:40]} Bd7 {[%emt 0:10:25]} 14. Nxc6 {[%emt 0:01:32]} Bxc6 {[%emt 0:01:06]} 15. Bxc6+ {[%emt 0:00:11]} Qxc6 {[%emt 0:00:18]} 16. Nd4 {[%emt 0:00:50]} Qb7 {[%emt 0:02:36]} 17. Bf4 {[%emt 0:02:22]} O-O-O {[%emt 0:02:46]} 18. Qg4+ {[%emt 0:01:55]} Kb8 {[%emt 0:01:00]} 19. Nb5 {[%emt 0:01:55]} Rc8 {[%emt 0:03:05]} 20. Rad1 {[%emt 0:00:41]} Bf6 {[%emt 0:02:00]} 21. Qf3 {[%emt 0:02:31]} Ne7 {[%emt 0:02:53]} 22. Be5 {[%emt 0:01:17]} Bxe5 {[%emt 0:03:52]} 23. Rxe5 {[%emt 0:00:15]} c6 {[%emt 0:01:54]} 24. Nd6 {[%emt 0:00:56]} Qc7 {[%emt 0:00:29]} 25. Qxf7 {[%emt 0:09:22]} Qxd6 {[%emt 0:02:46]} 26. Rxe7 {[%emt 0:00:31]} Rcf8 {[%emt 0:02:37]} 27. Qxg7 {[%emt 0:03:45]} Rhg8 {[%emt 0:00:54]} 28. Qxh7 {[%emt 0:02:30]} Rh8 {[%emt 0:00:22]} 29. Rd7 {[%emt 0:00:39]} Qf4 {[%emt 0:02:01]} 30. Rb7+ {[%emt 0:00:34]} 1-0

[Event "CZE-ch Youth G10-G12-G14 2022"]
[Site "Luhacovice"]
[Date "2022.03.13"]
[Round "2.26"]
[White "Maresova Denisa"]
[Black "Archlebova Eva"]
[Result "1/2-1/2"]
[ECO "A25"]
[WhiteElo "1103"]
[BlackElo "1040"]
[Annotator "NA"]
[PlyCount "64"]
[EventDate "2022.03.12"]
[EventType "swiss"]
[EventCountry "CZE"]
[SourceTitle "playchess.com"]
[Source "ChessBase"]
[SourceQuality "1"]
[TimeControl "40/5400+30:1800+30"]

1. c4 {[%emt 0:00:05]} e5 {[%emt 0:00:32]} 2. Nc3 {[%emt 0:00:18]} Nf6 {[%emt 0:00:33]} 3. g3 {[%emt 0:00:33]} Nc6 {[%emt 0:00:27]} 4. Bg2 {[%emt 0:00:59]} Bc5 {[%emt 0:01:22]} 5. d3 {[%emt 0:02:31]} Bb4 {[%emt 0:00:36]} 6. Qb3 {[%emt 0:02:46]} a5 {[%emt 0:01:30]} 7. Bd2 {[%emt 0:14:03]} Nd4 {[%emt 0:04:54]} 8. Qd1 {[%emt 0:02:53]} O-O {[%emt 0:00:49]} 9. Nf3 {[%emt 0:03:20]} d5 {[%emt 0:03:25]} 10. cxd5 {[%emt 0:05:09]} Nxd5 {[%emt 0:00:31]} 11. Nxe5 {[%emt 0:03:10]} c6 {[%emt 0:02:29]} 12. Nxd5 {[%emt 0:03:31]} cxd5 {[%emt 0:00:06]} 13. Bxb4 {[%emt 0:00:26]} axb4 {[%emt 0:00:05]} 14. Rc1 {[%emt 0:02:54]} Qd6 {[%emt 0:02:14]} 15. Nf3 {[%emt 0:01:11]} Nxf3+ {[%emt 0:03:01]} 16. Bxf3 {[%emt 0:00:06]} Rxa2 {[%emt 0:00:34]} 17. Qb3 {[%emt 0:01:22]} Ra5 {[%emt 0:02:51]} 18. O-O {[%emt 0:02:10]} Bh3 {[%emt 0:00:40]} 19. Rfd1 {[%emt 0:01:00]} h6 {[%emt 0:01:31]} 20. Ra1 {[%emt 0:01:38]} Rb5 {[%emt 0:02:34]} 21. Qa4 {[%emt 0:04:38]} Rb6 {[%emt 0:04:33]} 22. Qa5 {[%emt 0:00:45]} Be6 {[%emt 0:02:02]} 23. e4 {[%emt 0:04:34]} d4 {[%emt 0:03:07]} 24. e5 {[%emt 0:02:45]} Qd8 {[%emt 0:01:40]} 25. Rdc1 {[%emt 0:02:15]} Re8 {[%emt 0:06:14]} 26. Qa4 {[%emt 0:03:13]} Bd7 {[%emt 0:00:59]} 27. Qa5 {[%emt 0:03:22]} Ree6 {[%emt 0:02:14]} 28. Bxb7 {[%emt 0:02:38]} Qb8 {[%emt 0:02:40]} 29. Bg2 {[%emt 0:04:05]} Rxe5 {[%emt 0:01:46]} 30. Qa8 {[%emt 0:00:59]} Qxa8 {[%emt 0:01:09]} 31. Rxa8+ {[%emt 0:00:03]} Kh7 {[%emt 0:00:15]} 32. Ra7 {[%emt 0:02:24]} Be8 {[%emt 0:02:23]} 1/2-1/2

[Event "CZE-ch Youth G10-G12-G14 2022"]
[Site "Luhacovice"]
[Date "2022.03.13"]
[Round "2.27"]
[White "Archlebova Iva"]
[Black "Krisicova Neli"]
[Result "0-1"]
[ECO "C62"]
[WhiteElo "1028"]
[BlackElo "1093"]
[Annotator "NA"]
[PlyCount "39"]
[EventDate "2022.03.12"]
[EventType "swiss"]
[EventCountry "CZE"]
[SourceTitle "playchess.com"]
[Source "ChessBase"]
[SourceQuality "1"]
[TimeControl "40/5400+30:1800+30"]

1. e4 {[%emt 0:00:09]} e5 {[%emt 0:20:12]} 2. Nf3 {[%emt 0:44:56]} Nc6 {[%emt 0:07:13]} 3. Bb5 {[%emt 0:00:30]} d6 {[%emt 0:00:30]} 4. O-O {[%emt 0:00:30]} Bg4 {[%emt 0:00:30]} 5. Nc3 {[%emt 0:00:30]} Nge7 {[%emt 0:00:30]} 6. h3 {[%emt 0:00:30]} Bh5 {[%emt 0:00:30]} 7. d3 {[%emt 0:00:30]} Ng6 {[%emt 0:00:30]} 8. Be3 {[%emt 0:00:30]} Nf4 {[%emt 0:00:30]} 9. Nd5 {[%emt 0:00:30]} g5 {[%emt 0:00:30]} 10. d4 {[%emt 0:00:30]} Bg7 {[%emt 0:00:30]} 11. g4 {[%emt 0:00:30]} Nxh3+ {[%emt 0:00:30]} 12. Kh2 {[%emt 0:00:30]} Bxg4 {[%emt 0:00:30]} 13. Kg3 {[%emt 0:00:30]} h5 {[%emt 0:00:30]} 14. Rh1 {[%emt 0:00:30]} Qd7 {[%emt 0:00:30]} 15. Qd2 {[%emt 0:00:30]} Bxf3 {[%emt 0:00:30]} 16. Bf1 {[%emt 0:00:30]} Bxh1 {[%emt 0:00:30]} 17. Bxh3 {[%emt 0:00:30]} Qd8 {[%emt 0:00:30]} 18. Rxh1 {[%emt 0:00:30]} g4 {[%emt 0:00:30]} 19. Bf1 {[%emt 0:00:30]} exd4 {[%emt 0:00:30]} 20. Bg5 {[%emt 0:00:30]} 0-1

[Event "CZE-ch Youth G10-G12-G14 2022"]
[Site "Luhacovice"]
[Date "2022.03.13"]
[Round "2.28"]
[White "Havelkova Kamila"]
[Black "Kavanova Valentyna"]
[Result "1-0"]
[ECO "C10"]
[WhiteElo "1092"]
[BlackElo "1000"]
[Annotator "NA"]
[PlyCount "64"]
[EventDate "2022.03.12"]
[EventType "swiss"]
[EventCountry "CZE"]
[SourceTitle "playchess.com"]
[Source "ChessBase"]
[SourceQuality "1"]
[TimeControl "40/5400+30:1800+30"]

1. e4 {[%emt 0:00:07]} e6 {[%emt 0:00:02]} 2. d4 {[%emt 0:01:03]} d5 {[%emt 0:00:03]} 3. Nc3 {[%emt 0:01:19]} c5 {[%emt 0:00:49]} 4. Bd3 {[%emt 0:01:07]} Nc6 {[%emt 0:02:07]} 5. Bb5 {[%emt 0:01:12]} Bd7 {[%emt 0:01:06]} 6. Nf3 {[%emt 0:01:50]} a6 {[%emt 0:01:09]} 7. Bd3 {[%emt 0:01:04]} Be7 {[%emt 0:03:40]} 8. Be3 {[%emt 0:00:55]} Nf6 {[%emt 0:02:44]} 9. Qd2 {[%emt 0:01:18]} O-O {[%emt 0:00:32]} 10. O-O-O {[%emt 0:00:18]} h6 {[%emt 0:00:46]} 11. h4 {[%emt 0:01:15]} b5 {[%emt 0:02:32]} 12. exd5 {[%emt 0:05:20]} Nxd5 {[%emt 0:02:12]} 13. dxc5 {[%emt 0:02:11]} Ncb4 {[%emt 0:02:20]} 14. Be4 {[%emt 0:01:10]} Bc6 {[%emt 0:00:40]} 15. Bxh6 {[%emt 0:00:37]} Nxc3 {[%emt 0:03:11]} 16. bxc3 {[%emt 0:00:18]} Qxd2+ {[%emt 0:01:33]} 17. Bxd2 {[%emt 0:00:51]} Nxa2+ {[%emt 0:00:42]} 18. Kb1 {[%emt 0:00:57]} Nxc3+ {[%emt 0:00:34]} 19. Bxc3 {[%emt 0:00:24]} Bxe4 {[%emt 0:00:14]} 20. Ne1 {[%emt 0:01:29]} Bxc5 {[%emt 0:00:31]} 21. Rg1 {[%emt 0:01:56]} Bxf2 {[%emt 0:00:44]} 22. Rf1 {[%emt 0:00:35]} Bxh4 {[%emt 0:00:59]} 23. Rf4 {[%emt 0:00:53]} Bxe1 {[%emt 0:01:55]} 24. Rxe1 {[%emt 0:00:32]} Bxg2 {[%emt 0:00:30]} 25. Rg4 {[%emt 0:00:40]} Rfc8 {[%emt 0:04:10]} 26. Rxg7+ {[%emt 0:01:06]} Kf8 {[%emt 0:00:06]} 27. Bb2 {[%emt 0:01:29]} Bd5 {[%emt 0:01:00]} 28. Rh7 {[%emt 0:01:20]} f5 {[%emt 0:02:48]} 29. Ba3+ {[%emt 0:00:49]} Kg8 {[%emt 0:00:17]} 30. Rd7 {[%emt 0:01:09]} Be4 {[%emt 0:02:06]} 31. Rg1+ {[%emt 0:00:52]} Kh8 {[%emt 0:02:39]} 32. Bb2+ {[%emt 0:00:23]} e5 {[%emt 0:01:19]} 1-0

[Event "CZE-ch Youth G10-G12-G14 2022"]
[Site "Luhacovice"]
[Date "2022.03.13"]
[Round "2.29"]
[White "Reznickova, Sibyla"]
[Black "Rybackova, Lucie"]
[Result "0-1"]
[ECO "D00"]
[WhiteElo "1304"]
[BlackElo "1612"]
[Annotator "NA"]
[PlyCount "88"]
[EventDate "2022.03.12"]
[EventType "swiss"]
[EventCountry "CZE"]
[SourceTitle "playchess.com"]
[Source "ChessBase"]
[SourceQuality "1"]
[TimeControl "40/5400+30:1800+30"]

1. d4 {[%emt 0:01:01]} Nf6 {[%emt 0:00:22]} 2. Nf3 {[%emt 0:01:00]} g6 {[%emt 0:00:28]} 3. Bf4 {[%emt 0:00:58]} Bg7 {[%emt 0:01:58]} 4. Nc3 {[%emt 0:01:43]} d5 {[%emt 0:02:17]} 5. e3 {[%emt 0:00:59]} O-O {[%emt 0:06:12]} 6. Bd3 {[%emt 0:03:50]} b6 {[%emt 0:08:45]} 7. O-O {[%emt 0:07:35]} Bb7 {[%emt 0:03:50]} 8. Re1 {[%emt 0:06:23]} c5 {[%emt 0:08:35]} 9. b3 {[%emt 0:09:42]} Nc6 {[%emt 0:05:47]} 10. Qd2 {[%emt 0:05:35]} Ne4 {[%emt 0:04:08]} 11. Nxe4 {[%emt 0:05:07]} dxe4 {[%emt 0:00:30]} 12. Bxe4 {[%emt 0:00:44]} cxd4 {[%emt 0:01:15]} 13. exd4 {[%emt 0:03:02]} f5 {[%emt 0:08:55]} 14. Bxc6 {[%emt 0:03:54]} Bxc6 {[%emt 0:00:24]} 15. Rad1 {[%emt 0:14:01]} Bxf3 {[%emt 0:05:00]} 16. gxf3 {[%emt 0:01:03]} Qd7 {[%emt 0:04:24]} 17. Bh6 {[%emt 0:03:32]} Rf6 {[%emt 0:06:54]} 18. Bxg7 {[%emt 0:03:48]} Kxg7 {[%emt 0:00:15]} 19. Kh1 {[%emt 0:01:25]} Rd8 {[%emt 0:02:49]} 20. Qb4 {[%emt 0:04:10]} Rf7 {[%emt 0:04:38]} 21. Rg1 {[%emt 0:01:39]} Qc6 {[%emt 0:01:40]} 22. Rd3 {[%emt 0:04:06]} Qxc2 {[%emt 0:00:30]} 23. Qd2 {[%emt 0:02:00]} Qxd2 {[%emt 0:00:25]} 24. Rxd2 {[%emt 0:00:20]} Rd5 {[%emt 0:00:20]} 25. Re1 {[%emt 0:00:56]} Kf6 {[%emt 0:00:27]} 26. f4 {[%emt 0:00:32]} e6 {[%emt 0:00:22]} 27. Re5 {[%emt 0:01:17]} Rfd7 {[%emt 0:00:59]} 28. Rxd5 {[%emt 0:01:10]} Rxd5 {[%emt 0:00:10]} 29. Kg2 {[%emt 0:00:20]} Rd7 {[%emt 0:06:30]} 30. Kf3 {[%emt 0:01:13]} Rc7 {[%emt 0:01:10]} 31. h4 {[%emt 0:01:16]} Rc3+ {[%emt 0:02:42]} 32. Kg2 {[%emt 0:02:10]} Ke7 {[%emt 0:01:18]} 33. f3 {[%emt 0:01:06]} Kd6 {[%emt 0:00:18]} 34. Kf2 {[%emt 0:00:40]} Kd5 {[%emt 0:00:18]} 35. Ke2 {[%emt 0:00:50]} a5 {[%emt 0:00:55]} 36. Rd3 {[%emt 0:02:27]} Rc2+ {[%emt 0:00:13]} 37. Rd2 {[%emt 0:00:42]} Rxd2+ {[%emt 0:00:14]} 38. Kxd2 {[%emt 0:00:06]} Kxd4 {[%emt 0:00:04]} 39. a4 {[%emt 0:01:08]} h5 {[%emt 0:00:46]} 40. Kc2 {[%emt 0:01:02]} Ke3 {[%emt 0:00:07]} 41. Kc3 {[%emt 0:30:08]} Kxf3 {[%emt 0:30:10]} 42. Kc4 {[%emt 0:00:09]} Kxf4 {[%emt 0:00:08]} 43. Kb5 {[%emt 0:00:10]} Ke3 {[%emt 0:00:17]} 44. Kxb6 {[%emt 0:00:13]} f4 {[%emt 0:00:09]} 0-1

[Event "CZE-ch Youth G10-G12-G14 2022"]
[Site "Luhacovice"]
[Date "2022.03.13"]
[Round "2.30"]
[White "Dudkova, Josefina"]
[Black "Cinkova, Vicky"]
[Result "1-0"]
[ECO "B22"]
[WhiteElo "1545"]
[BlackElo "1317"]
[Annotator "NA"]
[PlyCount "39"]
[EventDate "2022.03.12"]
[EventType "swiss"]
[EventCountry "CZE"]
[SourceTitle "playchess.com"]
[Source "ChessBase"]
[SourceQuality "1"]
[TimeControl "40/5400+30:1800+30"]

1. e4 {[%emt 0:00:06]} c5 {[%emt 0:00:29]} 2. c3 {[%emt 0:00:11]} Nf6 {[%emt 0:00:16]} 3. e5 {[%emt 0:00:16]} Nd5 {[%emt 0:00:24]} 4. d4 {[%emt 0:00:26]} cxd4 {[%emt 0:00:36]} 5. Nf3 {[%emt 0:00:29]} e6 {[%emt 0:00:22]} 6. cxd4 {[%emt 0:00:38]} b6 {[%emt 0:00:20]} 7. Bd3 {[%emt 0:01:02]} Ba6 {[%emt 0:00:16]} 8. O-O {[%emt 0:03:10]} Bxd3 {[%emt 0:02:37]} 9. Qxd3 {[%emt 0:00:26]} Be7 {[%emt 0:02:05]} 10. Nc3 {[%emt 0:02:20]} Nc7 {[%emt 0:04:21]} 11. Be3 {[%emt 0:05:25]} O-O {[%emt 0:02:17]} 12. d5 {[%emt 0:07:20]} d6 {[%emt 0:07:17]} 13. Qe4 {[%emt 0:10:21]} dxe5 {[%emt 0:05:55]} 14. dxe6 {[%emt 0:03:17]} Nba6 {[%emt 0:02:22]} 15. exf7+ {[%emt 0:00:50]} Rxf7 {[%emt 0:01:04]} 16. Nxe5 {[%emt 0:01:33]} Rf6 {[%emt 0:01:56]} 17. Nc6 {[%emt 0:02:41]} Qd6 {[%emt 0:09:06]} 18. Nxe7+ {[%emt 0:01:27]} Kh8 {[%emt 0:01:51]} 19. Rad1 {[%emt 0:02:04]} Qb4 {[%emt 0:04:33]} 20. Qxa8+ {[%emt 0:02:26]} 1-0

[Event "CZE-ch Youth G10-G12-G14 2022"]
[Site "Luhacovice"]
[Date "2022.03.13"]
[Round "2.31"]
[White "Dobsa, Emma"]
[Black "Kaplanova, Dominika"]
[Result "1-0"]
[ECO "B18"]
[WhiteElo "1425"]
[BlackElo "1269"]
[Annotator "NA"]
[PlyCount "73"]
[EventDate "2022.03.12"]
[EventType "swiss"]
[EventCountry "CZE"]
[SourceTitle "playchess.com"]
[Source "ChessBase"]
[SourceQuality "1"]
[TimeControl "40/5400+30:1800+30"]

1. e4 {[%emt 0:00:17]} c6 {[%emt 0:00:27]} 2. d4 {[%emt 0:00:11]} d5 {[%emt 0:00:10]} 3. Nc3 {[%emt 0:00:28]} dxe4 {[%emt 0:00:35]} 4. Nxe4 {[%emt 0:00:15]} Bf5 {[%emt 0:00:06]} 5. Ng3 {[%emt 0:00:07]} Bg6 {[%emt 0:00:09]} 6. Nh3 {[%emt 0:00:10]} e6 {[%emt 0:00:41]} 7. Nf4 {[%emt 0:00:43]} c5 {[%emt 0:02:33]} 8. Be3 {[%emt 0:09:40]} cxd4 {[%emt 0:02:01]} 9. Bxd4 {[%emt 0:00:25]} Nc6 {[%emt 0:04:35]} 10. Bc3 {[%emt 0:08:48]} Qxd1+ {[%emt 0:01:48]} 11. Rxd1 {[%emt 0:00:10]} Bxc2 {[%emt 0:01:51]} 12. Rc1 {[%emt 0:01:55]} Bg6 {[%emt 0:03:34]} 13. h4 {[%emt 0:02:16]} Bd6 {[%emt 0:03:27]} 14. Nxg6 {[%emt 0:05:37]} hxg6 {[%emt 0:00:11]} 15. Bxg7 {[%emt 0:03:06]} Rh7 {[%emt 0:00:11]} 16. Bc3 {[%emt 0:02:22]} Be7 {[%emt 0:02:34]} 17. h5 {[%emt 0:09:26]} Rc8 {[%emt 0:03:37]} 18. hxg6 {[%emt 0:02:29]} Rxh1 {[%emt 0:02:46]} 19. gxf7+ {[%emt 0:01:35]} Kxf7 {[%emt 0:00:10]} 20. Nxh1 {[%emt 0:00:04]} Nb4 {[%emt 0:01:09]} 21. a4 {[%emt 0:07:43]} Rc6 {[%emt 0:07:52]} 22. Bd2 {[%emt 0:07:32]} Rxc1+ {[%emt 0:03:38]} 23. Bxc1 {[%emt 0:00:04]} Nf6 {[%emt 0:00:23]} 24. Ng3 {[%emt 0:04:52]} Nfd5 {[%emt 0:01:37]} 25. Bd2 {[%emt 0:04:37]} Nb6 {[%emt 0:02:55]} 26. b3 {[%emt 0:01:04]} Nc2+ {[%emt 0:05:10]} 27. Kd1 {[%emt 0:00:24]} Nd4 {[%emt 0:00:53]} 28. Bc4 {[%emt 0:01:49]} Nxc4 {[%emt 0:02:00]} 29. bxc4 {[%emt 0:00:14]} Nb3 {[%emt 0:01:20]} 30. Ne4 {[%emt 0:02:19]} b6 {[%emt 0:01:07]} 31. Bc3 {[%emt 0:03:20]} Nc5 {[%emt 0:03:04]} 32. Nxc5 {[%emt 0:00:46]} Bxc5 {[%emt 0:00:12]} 33. Ke2 {[%emt 0:01:54]} Kg6 {[%emt 0:00:25]} 34. f4 {[%emt 0:01:11]} Bd6 {[%emt 0:01:31]} 35. Kf3 {[%emt 0:00:33]} Kf5 {[%emt 0:01:01]} 36. g4+ {[%emt 0:00:48]} Kg6 {[%emt 0:00:08]} 37. Ke4 {[%emt 0:00:27]} 1-0

[Event "CZE-ch Youth G10-G12-G14 2022"]
[Site "Luhacovice"]
[Date "2022.03.13"]
[Round "2.33"]
[White "Hetfleischova, Elen"]
[Black "Filipova, Vanesa"]
[Result "1/2-1/2"]
[ECO "C01"]
[WhiteElo "1363"]
[BlackElo "1146"]
[Annotator "NA"]
[PlyCount "102"]
[EventDate "2022.03.12"]
[EventType "swiss"]
[EventCountry "CZE"]
[SourceTitle "playchess.com"]
[Source "ChessBase"]
[SourceQuality "1"]
[TimeControl "40/5400+30:1800+30"]

1. e4 {[%emt 0:00:04]} e6 {[%emt 0:00:25]} 2. d4 {[%emt 0:00:52]} d5 {[%emt 0:00:37]} 3. exd5 {[%emt 0:01:56]} exd5 {[%emt 0:01:03]} 4. Nc3 {[%emt 0:02:17]} Nf6 {[%emt 0:01:18]} 5. Nf3 {[%emt 0:00:49]} Bd6 {[%emt 0:02:50]} 6. Bg5 {[%emt 0:05:26]} Nbd7 {[%emt 0:01:58]} 7. Nxd5 {[%emt 0:01:30]} c6 {[%emt 0:01:32]} 8. Qe2+ {[%emt 0:14:17]} Be7 {[%emt 0:00:43]} 9. Nxe7 {[%emt 0:00:21]} Qxe7 {[%emt 0:00:23]} 10. O-O-O {[%emt 0:04:54]} Qxe2 {[%emt 0:03:54]} 11. Bxe2 {[%emt 0:00:12]} O-O {[%emt 0:01:47]} 12. h3 {[%emt 0:04:17]} Re8 {[%emt 0:11:52]} 13. Ne5 {[%emt 0:05:21]} Nxe5 {[%emt 0:00:53]} 14. dxe5 {[%emt 0:00:07]} Ne4 {[%emt 0:03:25]} 15. Be3 {[%emt 0:00:26]} Bf5 {[%emt 0:04:16]} 16. g4 {[%emt 0:00:36]} Bg6 {[%emt 0:01:22]} 17. h4 {[%emt 0:01:09]} h6 {[%emt 0:02:30]} 18. h5 {[%emt 0:12:48]} Bh7 {[%emt 0:00:51]} 19. Rhg1 {[%emt 0:09:21]} Rxe5 {[%emt 0:03:18]} 20. f4 {[%emt 0:00:24]} Ra5 {[%emt 0:01:33]} 21. g5 {[%emt 0:03:28]} hxg5 {[%emt 0:03:03]} 22. fxg5 {[%emt 0:00:42]} Bf5 {[%emt 0:03:41]} 23. h6 {[%emt 0:09:30]} g6 {[%emt 0:02:23]} 24. h7+ {[%emt 0:01:26]} Kxh7 {[%emt 0:18:23]} 25. Rh1+ {[%emt 0:00:20]} Kg7 {[%emt 0:00:09]} 26. Bd4+ {[%emt 0:00:11]} f6 {[%emt 0:00:30]} 27. gxf6+ {[%emt 0:05:04]} Nxf6 {[%emt 0:00:43]} 28. Rh4 {[%emt 0:02:39]} Rxa2 {[%emt 0:05:50]} 29. Kb1 {[%emt 0:00:29]} Ra5 {[%emt 0:01:34]} 30. Rdh1 {[%emt 0:02:26]} Kf7 {[%emt 0:03:28]} 31. Bc4+ {[%emt 0:02:12]} Be6 {[%emt 0:00:51]} 32. Rh7+ {[%emt 0:00:06]} Nxh7 {[%emt 0:00:06]} 33. Rxh7+ {[%emt 0:02:48]} Kg8 {[%emt 0:00:39]} 34. Rh8+ {[%emt 0:02:21]} Kf7 {[%emt 0:00:30]} 35. Bxe6+ {[%emt 0:00:30]} Kxe6 {[%emt 0:00:30]} 36. Rxa8 {[%emt 0:00:30]} a6 {[%emt 0:00:30]} 37. Re8+ {[%emt 0:03:08]} Kf5 {[%emt 0:01:23]} 38. c4 {[%emt 0:00:30]} g5 {[%emt 0:00:30]} 39. b3 {[%emt 0:00:30]} Kf4 {[%emt 0:00:30]} 40. Be3+ {[%emt 0:00:30]} Kf3 {[%emt 0:00:30]} 41. c5 {[%emt 0:30:30]} Rb5 {[%emt 0:30:30]} 42. Kc2 {[%emt 0:00:30]} g4 {[%emt 0:00:30]} 43. Kd3 {[%emt 0:00:30]} Ra5 {[%emt 0:00:30]} 44. Kc2 {[%emt 0:00:30]} Rb5 {[%emt 0:00:30]} 45. Kc3 {[%emt 0:01:46]} Ra5 {[%emt 0:00:14]} 46. Bd4 {[%emt 0:00:39]} g3 {[%emt 0:00:36]} 47. Rf8+ {[%emt 0:00:30]} Kg4 {[%emt 0:00:39]} 48. Rg8+ {[%emt 0:00:45]} Kf3 {[%emt 0:00:15]} 49. Rf8+ {[%emt 0:01:42]} Kg4 {[%emt 0:00:09]} 50. Rg8+ {[%emt 0:00:00]} Kf3 {[%emt 0:00:00]} 51. Rf8+ {[%emt 0:00:00]} Kg4 {[%emt 0:00:00]} 1/2-1/2

[Event "CZE-ch Youth G10-G12-G14 2022"]
[Site "Luhacovice"]
[Date "2022.03.13"]
[Round "2.34"]
[White "Foldynova Julie"]
[Black "Barteckova, Denisa"]
[Result "0-1"]
[ECO "B02"]
[WhiteElo "1000"]
[BlackElo "1323"]
[Annotator "NA"]
[PlyCount "48"]
[EventDate "2022.03.12"]
[EventType "swiss"]
[EventCountry "CZE"]
[SourceTitle "playchess.com"]
[Source "ChessBase"]
[SourceQuality "1"]
[TimeControl "40/5400+30:1800+30"]

1. e4 {[%emt 0:00:04]} d5 {[%emt 0:00:11]} 2. exd5 {[%emt 0:00:07]} Nf6 {[%emt 0:00:07]} 3. Nf3 {[%emt 0:00:30]} Nxd5 {[%emt 0:00:09]} 4. Nc3 {[%emt 0:01:28]} Bg4 {[%emt 0:01:39]} 5. Be2 {[%emt 0:03:31]} Nf4 {[%emt 0:01:15]} 6. O-O {[%emt 0:02:08]} Nxe2+ {[%emt 0:00:10]} 7. Qxe2 {[%emt 0:00:50]} Nc6 {[%emt 0:00:10]} 8. Qe4 {[%emt 0:04:49]} f5 {[%emt 0:03:27]} 9. Qf4 {[%emt 0:10:03]} h6 {[%emt 0:02:02]} 10. d3 {[%emt 0:24:30]} g5 {[%emt 0:00:55]} 11. Qe3 {[%emt 0:09:45]} Qd7 {[%emt 0:33:30]} 12. Ne5 {[%emt 0:11:56]} Qd4 {[%emt 0:05:38]} 13. Nb5 {[%emt 0:06:51]} Qxe5 {[%emt 0:00:32]} 14. Qxe5 {[%emt 0:01:08]} Nxe5 {[%emt 0:00:07]} 15. Nxc7+ {[%emt 0:00:18]} Kd7 {[%emt 0:00:16]} 16. Nxa8 {[%emt 0:00:12]} Bg7 {[%emt 0:00:19]} 17. d4 {[%emt 0:02:25]} Nc6 {[%emt 0:00:36]} 18. f3 {[%emt 0:03:04]} Bh5 {[%emt 0:00:53]} 19. Be3 {[%emt 0:03:53]} Rxa8 {[%emt 0:00:40]} 20. c4 {[%emt 0:01:26]} Bxd4 {[%emt 0:03:39]} 21. Bxd4 {[%emt 0:03:32]} Nxd4 {[%emt 0:00:21]} 22. Rad1 {[%emt 0:02:08]} e5 {[%emt 0:00:29]} 23. b4 {[%emt 0:00:59]} b6 {[%emt 0:01:58]} 24. h3 {[%emt 0:04:32]} Bf7 {[%emt 0:00:23]} 0-1